bitfinex-derivatives/quotes_BNBF0:USTF0_20250413
["timestamp","ask_amount","ask_price","bid_price","bid_amount"]
[1744569843661,0.239,587.45,586.66,0.31303439]
[1744569843860,0.239,587.45,586.68,0.31303439]
[1744569844056,0.239,587.45,586.69,0.31303439]
[1744569844261,0.239,587.45,586.66,0.31303439]
[1744569844461,0.239,587.45,586.67,0.31303439]
[1744569844661,0.239,587.45,586.66,0.85603439]
[1744569844861,0.239,587.45,586.67,0.31303439]
[1744569848067,0.239,587.45,586.66,0.543]
[1744569848266,0.239,587.45,586.67,0.31300138]
[1744569849667,0.239,587.45,586.66,0.543]
[1744569849868,0.239,587.45,586.67,0.31298187]
[1744569851462,0.239,587.45,586.68,0.31296931]
[1744569851665,0.239,587.45,586.67,0.31296931]
[1744569851862,0.239,587.45,586.68,0.31296931]
[1744569852166,0.239,587.45,586.69,0.31296931]
[1744569852362,0.239,587.45,586.67,0.31296931]
[1744569852969,0.239,587.45,586.68,0.31295486]
[1744569853165,0.239,587.45,586.69,0.31295486]
[1744569853363,0.239,587.45,586.67,0.31295486]
[1744569853568,0.239,587.45,586.68,0.31295486]
[1744569853867,0.239,587.45,586.69,0.31295486]
[1744569854068,0.239,587.45,586.7,0.31295486]
[1744569854268,0.239,587.45,586.71,0.31295159]
[1744569854466,0.239,587.45,586.72,0.31295159]
[1744569854665,0.239,587.45,586.73,0.31295159]
[1744569854867,0.239,587.45,586.74,0.31295159]
[1744569855069,0.239,587.45,586.74,0.58]
[1744569855369,0.239,587.45,586.75,0.31295159]
[1744569859566,0.239,587.45,586.76,0.31294239]
[1744569859770,0.239,587.45,586.77,0.31294239]
[1744569859970,0.239,587.45,586.77,0.395]
[1744569860171,0.239,587.45,586.78,0.31294239]
[1744569863375,0.239,587.45,586.78,0.79094239]
[1744569863576,0.239,587.45,586.79,0.31294239]
[1744569865777,0.239,587.45,586.8,0.31294172]
[1744569865976,0.239,587.45,586.79,0.31294172]
[1744569868481,0.239,587.45,586.79,0.92694172]
[1744569868680,0.239,587.45,586.8,0.31294172]
[1744569869378,0.239,587.45,586.79,0.614]
[1744569876190,0.239,587.45,586.8,0.31295742]
[1744569877690,0.239,587.45,586.81,0.31295215]
[1744569877885,0.239,587.45,586.79,0.614]
[1744569878085,0.239,587.45,586.8,0.31295168]
[1744569878289,0.239,587.45,586.79,0.614]
[1744569880387,0.239,587.45,586.79,1.013]
[1744569884591,0.239,587.45,586.8,0.31294622]
[1744569885492,0.239,587.45,586.8,0.73794622]
[1744569885689,0.239,587.45,586.81,0.31294622]
[1744569886988,0.239,587.45,586.8,0.425]
[1744569887293,0.239,587.45,586.81,0.31294398]
[1744569891594,0.239,587.45,586.8,0.425]
[1744569891794,0.239,587.45,586.81,0.31296197]
[1744569894598,0.239,587.45,586.81,0.76996197]
[1744569894798,0.239,587.45,586.82,0.31296197]
[1744569895896,0.239,587.45,586.83,0.562]
[1744569901903,0.239,587.45,586.84,0.605]
[1744569912612,0.239,587.45,586.85,0.58]
[1744569913415,0.239,587.45,586.86,0.406]
[1744569913615,0.239,587.45,586.86,0.971]
[1744569915217,0.239,587.45,586.87,0.545]
[1744569915419,0.3071626,587.44,586.87,0.545]
[1744569916014,0.29640103,587.49,586.87,0.545]
[1744569916216,0.30717175,587.48,586.87,0.545]
[1744569917322,0.29647299,587.58,586.87,0.545]
[1744569917520,0.30723658,587.57,586.87,0.545]
[1744569918626,0.54623658,587.57,586.87,0.545]
[1744569918821,0.30723658,587.56,586.87,0.545]
[1744569920326,0.29639598,587.55,586.87,0.545]
[1744569920526,0.30723658,587.54,586.87,0.545]
[1744569920727,0.30722052,587.53,586.87,0.545]
[1744569920926,0.30722052,587.52,586.87,0.545]
[1744569921126,0.30722052,587.54,586.87,0.545]
[1744569921327,0.30722052,587.53,586.87,0.545]
[1744569921522,0.30722052,587.54,586.87,0.545]
[1744569922128,0.29639598,587.55,586.87,0.545]
[1744569922328,0.30717761,587.54,586.87,0.545]
[1744569925330,0.30717761,587.56,586.87,0.545]
[1744569925531,0.30717761,587.55,586.87,0.545]
[1744569925733,0.239,587.57,586.87,0.545]
[1744569932337,0.29633162,587.56,586.87,0.545]
[1744569933638,0.30715878,587.55,586.87,0.545]
[1744569933838,0.64755534,587.55,586.87,0.545]
[1744569934137,0.30715878,587.54,586.87,0.545]
[1744569934537,0.34039656,587.55,586.88,0.593]
[1744569934739,0.30718009,587.54,586.88,0.593]
[1744569935338,0.29650078,587.53,586.88,0.593]
[1744569935532,0.30718009,587.52,586.88,0.593]
[1744569937341,0.30718009,587.54,586.88,0.593]
[1744569937641,0.34039656,587.55,586.88,0.593]
[1744569937835,0.3071285,587.54,586.88,0.593]
[1744569938342,0.29650078,587.53,586.88,0.593]
[1744569938542,0.3071285,587.52,586.88,0.593]
[1744569938738,0.3071285,587.52,586.89,0.597]
[1744569940339,0.3071285,587.54,586.89,0.597]
[1744569940539,0.3071285,587.53,586.89,0.597]
[1744569940838,0.3071285,587.52,586.89,0.597]
[1744569941039,0.3071285,587.51,586.89,0.597]
[1744569941245,0.3071285,587.54,586.89,0.597]
[1744569941545,0.29649952,587.51,586.89,0.597]
[1744569941742,0.3071285,587.5,586.89,0.597]
[1744569942346,0.34042553,587.5,586.89,0.597]
[1744569942546,0.30708029,587.49,586.89,0.597]
[1744569943442,0.30708029,587.49,586.9,0.678]
[1744569944347,0.29651973,587.48,586.9,0.678]
[1744569944545,0.30708029,587.47,586.9,0.678]
[1744569945446,0.29651973,587.48,586.9,0.678]
[1744569945648,0.30703931,587.47,586.9,0.678]
[1744569947350,0.30703931,587.47,586.9,1.272]
[1744569949345,0.239,587.46,586.9,1.272]
[1744569949751,0.30703931,587.45,586.9,1.272]
[1744569950347,0.29651973,587.44,586.9,1.272]
[1744569950553,0.6475054,587.43,586.9,1.272]
[1744569950851,0.30703931,587.42,586.9,1.272]
[1744569951650,0.6475112,587.42,586.9,1.272]
[1744569951854,0.30703931,587.41,586.9,1.792]
[1744569953455,0.29655005,587.4,586.9,1.792]
[1744569953650,0.30703931,587.39,586.9,1.792]
[1744569956757,0.34049507,587.38,586.9,1.792]
[1744569957057,0.30703931,587.37,586.9,1.792]
[1744569957258,0.34050667,587.36,586.9,1.792]
[1744569957457,0.30703931,587.35,586.9,1.792]
[1744569957758,0.34051826,587.34,586.9,1.792]
[1744569957957,0.30703931,587.33,586.9,1.792]
[1744569958253,0.34052986,587.32,586.9,1.792]
[1744569958453,0.30703931,587.31,586.9,1.792]
[1744569958758,0.34054146,587.3,586.9,1.792]
[1744569958957,0.30703931,587.29,586.9,1.792]
[1744569959160,0.34055305,587.28,586.9,1.792]
[1744569959457,0.30703931,587.27,586.9,1.792]
[1744569959657,0.34056465,587.26,586.9,1.792]
[1744569959851,0.30703931,587.25,586.9,1.792]
[1744569960052,0.34057625,587.24,586.9,1.792]
[1744569960253,0.30703931,587.23,586.9,1.792]
[1744569962352,0.2966183,587.22,586.9,1.198]
[1744569962553,0.30703931,587.21,586.9,1.198]
[1744569963258,0.30703931,587.21,586.9,0.52]
[1744569963661,0.30717341,587.2,586.9,0.52]
[1744569963857,0.30717341,587.21,586.8,1.119]
[1744569964061,0.30717341,587.2,586.8,1.119]
[1744569964263,0.30716877,587.19,586.8,1.119]
[1744569964561,0.30716877,587.18,586.8,1.119]
[1744569964761,0.34057625,587.24,586.8,1.119]
[1744569964762,0.30716877,587.23,586.8,1.119]
[1744569965358,0.29663094,587.22,586.8,1.119]
[1744569965564,0.30716877,587.21,586.8,1.119]
[1744569967462,0.30716877,587.23,586.8,1.119]
[1744569967658,0.30716877,587.22,586.8,1.119]
[1744569967958,0.30716877,587.21,586.8,1.119]
[1744569968257,0.30716877,587.23,586.8,1.119]
[1744569968462,0.29663094,587.2,586.8,1.119]
[1744569968657,0.30716877,587.19,586.8,1.119]
[1744569969858,0.29663094,587.2,586.8,1.119]
[1744569970059,0.30728401,587.19,586.8,1.119]
[1744569970558,0.30728401,587.18,586.8,1.119]
[1744569970762,0.29664358,587.18,586.8,1.119]
[1744569970957,0.30728401,587.17,586.8,1.119]
[1744569973366,0.29665117,587.16,586.8,1.119]
[1744569973567,0.30728401,587.15,586.8,1.119]
[1744569976263,0.30723373,587.14,586.8,1.119]
[1744569976461,0.30723373,587.23,586.8,1.119]
[1744569976664,0.30723373,587.22,586.8,1.119]
[1744569976864,0.30723373,587.21,586.8,1.119]
[1744569977065,0.30723373,587.23,586.8,1.119]
[1744569977265,0.30723373,587.22,586.8,1.119]
[1744569977463,0.29661071,587.2,586.8,1.119]
[1744569977665,0.30723373,587.19,586.8,1.119]
[1744569977868,0.29661071,587.2,586.8,1.119]
[1744569978068,0.30726905,587.19,586.8,1.119]
[1744569979366,0.30726905,587.18,586.8,1.119]
[1744569979566,0.30726905,587.22,586.8,1.119]
[1744569979869,0.29660818,587.2,586.8,1.119]
[1744569980068,0.30726905,587.19,586.8,1.119]
[1744569982272,0.30726905,587.22,586.8,1.119]
[1744569982473,0.29661324,587.2,586.8,1.119]
[1744569982667,0.30726905,587.19,586.8,1.119]
[1744569984170,0.29661324,587.2,586.8,1.119]
[1744569984369,0.30727292,587.19,586.8,1.119]
[1744569985370,0.239,587.23,586.8,1.119]
[1744569985371,0.30727292,587.22,586.8,1.119]
[1744569985574,0.30727292,587.21,586.8,1.119]
[1744569985769,0.30727292,587.22,586.8,1.119]
[1744569986577,0.29660818,587.21,586.8,1.119]
[1744569987077,0.30727292,587.2,586.8,1.119]
[1744569988277,0.30727292,587.19,586.8,0.625]
[1744569988576,0.30727292,587.18,586.8,0.625]
[1744569988779,0.30727292,587.17,586.8,0.625]
[1744569988977,0.30727292,587.22,586.8,0.625]
[1744569989273,0.29660818,587.21,586.8,0.625]
[1744569989478,0.30727292,587.2,586.8,0.625]
[1744569991279,0.30727292,587.22,586.8,0.625]
[1744569991479,0.29660945,587.21,586.8,0.625]
[1744569991774,0.30727292,587.2,586.8,0.625]
[1744569992280,0.30737948,587.19,586.8,0.625]
[1744569992477,0.30737948,587.2,586.8,0.625]
[1744569992679,0.29660945,587.21,586.8,0.625]
[1744569992680,0.30737948,587.19,586.8,0.625]
[1744569992887,0.30737948,587.18,586.8,0.625]
[1744569993087,0.30737948,587.2,586.8,0.625]
[1744569993288,0.30737948,587.19,586.8,0.625]
[1744569993483,0.30737948,587.18,586.8,0.625]
[1744569993683,0.30737948,587.2,586.8,0.625]
[1744569994390,0.30737948,587.22,586.8,0.625]
[1744569994588,0.30737948,587.21,586.8,0.625]
[1744569994787,0.30737948,587.22,586.8,0.625]
[1744569994985,0.30737948,587.21,586.8,0.625]
[1744569995188,0.30737948,587.22,586.8,0.625]
[1744569995484,0.29660566,587.21,586.8,0.625]
[1744569995689,0.30737948,587.2,586.8,0.625]
[1744569996589,0.30742089,587.19,586.8,0.625]
[1744569996884,0.30742089,587.19,586.78,0.392]
[1744569996885,0.30742089,587.2,586.78,0.392]
[1744569997085,0.30742089,587.19,586.78,0.392]
[1744569997292,0.30742089,587.22,586.78,0.392]
[1744569997490,0.29661324,587.21,586.78,0.392]
[1744569997689,0.30742089,587.2,586.78,0.392]
[1744570000290,0.30742089,587.22,586.78,0.392]
[1744570000486,0.30742089,587.21,586.78,0.392]
[1744570000685,0.30742089,587.22,586.78,0.392]
[1744570001490,0.60403034,587.21,586.78,0.392]
[1744570001786,0.30742089,587.2,586.78,0.392]
[1744570003292,0.30742089,587.23,586.78,0.392]
[1744570003593,0.29660945,587.21,586.78,0.392]
[1744570003793,0.30745482,587.2,586.78,0.392]
[1744570004994,0.53560945,587.21,586.78,0.392]
[1744570005293,0.30745308,587.2,586.78,0.392]
[1744570008095,0.53560945,587.21,586.78,0.392]
[1744570008395,0.30748903,587.2,586.78,0.392]
[1744570011401,0.30747015,587.19,586.78,0.392]
[1744570011601,0.30747015,587.2,586.78,0.392]
[1744570011797,0.30747015,587.19,586.78,0.392]
[1744570012000,0.30747015,587.2,586.78,0.392]
[1744570012202,0.30747015,587.19,586.78,0.392]
[1744570012402,0.30747015,587.18,586.78,0.392]
[1744570012598,0.30747015,587.2,586.78,0.392]
[1744570012801,0.30747015,587.19,586.78,0.392]
[1744570013002,0.30747015,587.18,586.78,0.392]
[1744570013301,0.30747015,587.17,586.78,0.392]
[1744570013502,0.30747015,587.2,586.78,0.392]
[1744570013903,0.30747015,587.2,586.77,1.12]
[1744570014402,0.53561324,587.21,586.77,1.12]
[1744570014703,0.30747501,587.2,586.77,1.12]
[1744570015504,0.30747501,587.2,586.77,1.59]
[1744570016004,0.239,587.21,586.77,1.59]
[1744570016300,0.30749951,587.2,586.77,1.59]
[1744570017299,0.30749951,587.2,586.77,2.152]
[1744570019104,0.239,587.21,586.77,2.152]
[1744570019299,0.30755695,587.2,586.77,2.152]
[1744570024607,0.30755695,587.23,586.77,2.152]
[1744570024906,0.30755695,587.22,586.77,2.152]
[1744570025104,0.30755695,587.23,586.77,2.152]
[1744570025308,0.30755695,587.22,586.77,2.152]
[1744570025608,0.6041664,587.21,586.77,2.152]
[1744570025908,0.30755695,587.2,586.77,2.152]
[1744570027407,0.30755695,587.23,586.77,2.152]
[1744570028013,0.239,587.22,586.77,2.152]
[1744570028214,0.30750581,587.21,586.77,2.152]
[1744570028413,0.60407987,587.21,586.77,2.152]
[1744570028613,0.30750581,587.2,586.77,2.152]
[1744570030409,0.30750581,587.21,586.77,2.152]
[1744570030713,0.30750581,587.2,586.77,2.152]
[1744570031009,0.30750581,587.19,586.77,2.152]
[1744570031213,0.30750581,587.21,586.77,2.152]
[1744570031513,0.29661956,587.18,586.77,1.543]
[1744570032917,0.30758819,587.17,586.77,1.543]
[1744570033412,0.30758819,587.16,586.77,1.543]
[1744570033715,0.30758819,587.15,586.77,1.543]
[1744570036114,0.30755265,587.14,586.77,1.543]
[1744570036411,0.30755265,587.15,586.77,1.543]
[1744570036611,0.30755265,587.14,586.77,1.543]
[1744570036815,0.30755265,587.21,586.77,1.543]
[1744570037116,0.30755265,587.2,586.77,1.543]
[1744570037315,0.30755265,587.21,586.77,1.543]
[1744570037516,0.60418232,587.2,586.77,1.543]
[1744570037716,0.30755265,587.19,586.77,1.543]
[1744570039216,0.30756373,587.18,586.77,1.543]
[1744570039412,0.30756373,587.19,586.77,1.543]
[1744570039618,0.30756373,587.18,586.77,1.543]
[1744570039815,0.30756373,587.17,586.77,1.543]
[1744570040016,0.30756373,587.16,586.77,1.543]
[1744570040215,0.30756373,587.19,586.77,1.543]
[1744570040415,0.30756373,587.18,586.77,1.543]
[1744570040622,0.30756373,587.19,586.77,1.073]
[1744570042417,0.60418949,587.18,586.77,1.073]
[1744570042622,0.30755476,587.17,586.77,1.073]
[1744570045523,0.30755476,587.19,586.77,1.073]
[1744570045723,0.64816581,587.18,586.77,1.073]
[1744570045923,0.30755476,587.17,586.77,1.073]
[1744570046119,0.64817161,587.17,586.77,1.073]
[1744570046323,0.60421478,587.16,586.77,1.073]
[1744570046521,0.30755476,587.15,586.77,1.073]
[1744570048319,0.30755476,587.16,586.77,1.073]
[1744570049124,0.2966714,587.15,586.77,1.073]
[1744570049322,0.30755476,587.14,586.77,1.073]
[1744570049926,0.34064006,587.13,586.77,1.073]
[1744570050123,0.30749644,587.12,586.77,1.073]
[1744570051329,0.30749644,587.12,586.77,0.562]
[1744570051524,0.29667646,587.11,586.77,0.562]
[1744570054330,0.34064006,587.13,586.77,0.562]
[1744570054533,0.29664737,587.12,586.77,0.562]
[1744570055135,0.30750125,587.11,586.77,0.562]
[1744570055333,0.34064006,587.13,586.77,0.562]
[1744570063435,0.34064006,587.13,586.74,0.477]
[1744570070743,0.30736333,587.12,586.74,0.477]
[1744570070942,0.34064006,587.13,586.74,0.477]
[1744570071141,0.30737973,587.12,586.74,0.477]
[1744570071339,0.34064006,587.13,586.74,0.477]
[1744570071746,0.34064006,587.13,586.7,1.781]
[1744570072649,0.30739049,587.12,586.7,1.781]
[1744570074852,0.34064006,587.13,586.7,1.781]
[1744570075054,0.30735094,587.12,586.7,1.781]
[1744570075549,0.30734029,587.11,586.7,1.781]
[1744570075758,0.30734029,587.12,586.7,1.781]
[1744570075950,0.30734029,587.11,586.7,1.781]
[1744570076154,0.30734029,587.12,586.7,1.781]
[1744570076354,0.30734029,587.11,586.7,1.781]
[1744570076550,0.30734029,587.1,586.7,1.781]
[1744570076757,0.30734029,587.12,586.7,1.781]
[1744570077053,0.30734029,587.11,586.7,1.781]
[1744570077354,0.30734029,587.1,586.7,1.781]
[1744570077555,0.30734029,587.12,586.7,1.781]
[1744570077755,0.30734029,587.11,586.7,1.781]
[1744570077956,0.30734029,587.12,586.7,1.781]
[1744570078156,0.30734029,587.1,586.7,1.781]
[1744570078457,0.30734029,587.09,586.7,1.781]
[1744570078658,0.34064006,587.13,586.7,1.781]
[1744570078956,0.30734818,587.12,586.7,1.781]
[1744570080154,0.34064006,587.13,586.7,1.781]
[1744570080354,0.30733511,587.12,586.7,1.781]
[1744570081358,0.60399007,587.12,586.7,1.781]
[1744570081552,0.30733511,587.11,586.7,1.781]
[1744570082853,0.29665496,587.12,586.7,1.781]
[1744570083057,0.30730585,587.11,586.7,1.781]
[1744570083560,0.30730585,587.11,586.7,1.124]
[1744570084364,0.29665496,587.12,586.7,1.124]
[1744570084763,0.30725408,587.11,586.7,1.124]
[1744570085967,0.29665496,587.12,586.7,1.124]
[1744570086165,0.30725541,587.11,586.7,1.124]
[1744570087566,0.60391669,587.1,586.7,1.124]
[1744570087867,0.30725541,587.09,586.7,1.124]
[1744570089067,0.29666128,587.1,586.7,1.124]
[1744570089267,0.30726875,587.09,586.7,1.124]
[1744570089764,0.34064006,587.13,586.7,1.124]
[1744570089765,0.30726875,587.12,586.7,1.124]
[1744570089963,0.30726875,587.11,586.7,1.124]
[1744570090167,0.30726875,587.12,586.7,1.124]
[1744570090668,0.34064006,587.13,586.7,1.124]
[1744570090968,0.30728812,587.12,586.7,1.124]
[1744570091672,0.30728812,587.12,586.7,0.572]
[1744570092466,0.34064006,587.13,586.7,0.572]
[1744570092971,0.30732099,587.12,586.7,0.572]
[1744570093774,0.34064006,587.13,586.7,0.572]
[1744570094072,0.3073214,587.12,586.7,0.572]
[1744570094775,0.34064006,587.13,586.7,0.572]
[1744570096368,0.30731097,587.12,586.7,0.572]
[1744570100075,0.57964006,587.13,586.7,0.572]
[1744570100372,0.30725374,587.12,586.7,0.572]
[1744570109383,0.57964006,587.13,586.7,0.572]
[1744570115288,0.30727444,587.12,586.7,0.572]
[1744570115789,0.57964006,587.13,586.7,0.572]
[1744570116890,0.57964006,587.13,586.7,1.137]
[1744570120690,0.57964006,587.13,586.7,1.663]
[1744570120892,0.57964006,587.13,586.7,2.199]
[1744570124397,0.30723447,587.12,586.7,2.199]
[1744570124696,0.30723447,587.12,586.7,1.627]
[1744570124895,0.57964006,587.13,586.7,1.627]
[1744570127494,0.30724987,587.12,586.7,1.627]
[1744570128500,0.57964006,587.13,586.7,1.627]
[1744570140913,0.57964006,587.13,586.7,2.12]
[1744570148916,0.239,587.13,586.7,2.12]
[1744570181941,0.239,587.13,586.7,2.704]
[1744570213873,0.30727818,587.12,586.7,2.704]
[1744570214172,0.30727818,587.12,586.03,0.29656395]
[1744570214373,0.30727818,587.12,586.04,0.65452313]
[1744570214574,0.30727818,587.19,586.05,0.6545173]
[1744570214773,0.29656395,587.2,586.06,0.65451148]
[1744570214975,0.30728472,587.19,586.07,0.65450566]
[1744570215174,0.29656395,587.2,586.07,0.34125616]
[1744570215376,0.30728353,587.19,586.08,0.65450259]
[1744570215569,0.30728353,587.19,586.09,0.31325225]
[1744570216877,0.30728353,587.19,586.1,0.635]
[1744570217076,0.54628353,587.19,586.11,0.31325225]
[1744570217275,0.30728353,587.18,586.11,0.31325225]
[1744570217674,0.30728353,587.18,586.12,0.474]
[1744570217878,0.30728353,587.18,586.12,1.015]
[1744570218079,0.30728353,587.18,586.13,1.28225225]
[1744570218279,0.30728353,587.18,586.14,0.31325225]
[1744570219980,0.239,587.19,586.13,0.969]
[1744570220179,0.30725742,587.18,586.14,0.31326632]
[1744570227083,0.30725742,587.18,586.13,0.969]
[1744570227388,0.30725742,587.18,586.14,0.31331312]
[1744570228592,0.29672325,587.17,586.14,0.31331312]
[1744570228890,0.30725742,587.16,586.14,0.31331312]
[1744570231397,1.28863208,587.58,586.13,0.969]
[1744570231598,0.29672705,587.15,586.14,0.31329506]
[1744570231797,0.30732024,587.14,586.14,0.31329506]
[1744570231998,0.30732024,587.55,586.14,0.31329506]
[1744570232199,0.34040814,587.53,586.14,0.31329506]
[1744570232498,0.30732024,587.52,586.14,0.31329506]
[1744570232897,0.34041973,587.51,586.15,0.34120958]
[1744570233094,0.30739555,587.5,586.16,0.31322041]
[1744570233295,0.34043132,587.49,586.17,0.34119794]
[1744570233498,0.30739555,587.48,586.18,0.31322041]
[1744570233698,0.30739555,587.48,586.19,0.3411863]
[1744570233996,0.34044291,587.47,586.2,0.31322041]
[1744570234198,0.30739555,587.46,586.21,0.34117466]
[1744570234395,0.30739555,587.46,586.22,0.31322041]
[1744570234699,0.30751763,587.45,586.23,0.65433794]
[1744570234895,0.30751763,587.46,586.24,0.31317492]
[1744570235100,0.30751763,587.45,586.24,0.65433212]
[1744570235298,0.30751763,587.46,586.25,0.6543263]
[1744570235495,0.29660439,587.44,586.26,0.65432048]
[1744570235698,0.30751763,587.43,586.27,0.31317492]
[1744570236296,0.30749419,587.42,586.28,0.31317155]
[1744570236496,0.30749419,587.43,586.27,0.31317155]
[1744570236796,0.30749419,587.43,586.26,0.34114556]
[1744570236797,0.30749419,587.42,586.28,0.31317155]
[1744570237001,0.30749419,587.43,586.29,0.34112811]
[1744570237200,0.30749419,587.43,586.3,0.31317155]
[1744570237700,0.60408847,587.42,586.3,0.31317155]
[1744570237895,0.29659428,587.42,586.29,0.34112811]
[1744570238096,0.30751447,587.41,586.3,0.3131702]
[1744570238297,0.30751447,587.41,586.3,0.65429249]
[1744570238495,0.30751447,587.41,586.31,0.3131702]
[1744570239502,0.29659428,587.42,586.3,0.34112229]
[1744570239702,0.30753924,587.41,586.31,0.31317082]
[1744570240497,0.30753924,587.4,586.31,0.31317082]
[1744570240702,0.30753924,587.41,586.31,0.31317082]
[1744570240898,0.30753924,587.41,586.31,0.65428729]
[1744570241104,0.29659302,587.42,586.32,0.34111065]
[1744570241704,0.29659302,587.42,586.33,0.457]
[1744570243307,0.34044291,587.47,586.33,0.457]
[1744570243503,0.29657911,587.44,586.33,0.457]
[1744570246207,0.29657911,587.44,586.34,0.66]
[1744570246410,0.34044291,587.47,586.34,0.66]
[1744570246609,0.29657911,587.44,586.34,0.66]
[1744570247312,0.29657911,587.44,586.35,0.677]
[1744570248512,0.239,587.44,586.35,0.677]
[1744570248812,0.239,587.44,586.36,0.31309019]
[1744570249014,0.239,587.44,586.35,0.677]
[1744570249514,0.239,587.44,586.36,0.31309024]
[1744570249712,0.239,587.44,586.35,0.677]
[1744570250014,0.239,587.44,586.36,0.31309027]
[1744570250208,0.239,587.44,586.36,1.00409027]
[1744570250409,0.239,587.44,586.36,0.691]
[1744570251013,0.30768372,587.43,586.37,0.31309072]
[1744570251313,0.30768372,587.43,586.38,0.34107575]
[1744570251513,0.30768372,587.43,586.39,0.31309072]
[1744570251712,0.30768372,587.43,586.4,0.34106412]
[1744570251908,0.30768372,587.43,586.41,0.31309072]
[1744570254216,0.239,587.44,586.4,0.34106412]
[1744570254417,0.30766551,587.43,586.41,0.3131085]
[1744570257118,0.239,587.44,586.41,0.3131085]
[1744570258218,0.30763795,587.43,586.41,0.3131085]
[1744570258720,0.60420569,587.43,586.41,0.3131085]
[1744570258918,0.29656774,587.43,586.41,0.3131085]
[1744570259120,0.29656774,587.43,586.4,0.34106412]
[1744570259319,0.29656774,587.43,586.41,0.31313934]
[1744570259716,0.29656774,587.43,586.4,0.34106412]
[1744570259921,0.30763236,587.42,586.41,0.31314564]
[1744570260217,0.30763236,587.42,586.4,0.34106412]
[1744570260621,0.29656774,587.43,586.4,0.34106412]
[1744570260816,0.30762401,587.42,586.4,0.34106412]
[1744570261523,0.30762401,587.46,586.4,0.34106412]
[1744570261716,0.2966006,587.41,586.4,0.34106412]
[1744570262023,0.30761777,587.4,586.4,0.34106412]
[1744570263023,0.239,587.39,586.4,0.34106412]
[1744570263322,0.30761777,587.38,586.4,0.34106412]
[1744570263517,0.239,587.39,586.4,0.34106412]
[1744570263717,0.30757522,587.38,586.4,0.34106412]
[1744570263922,0.239,587.39,586.4,0.34106412]
[1744570264619,0.29662335,587.38,586.4,0.34106412]
[1744570265325,0.34050087,587.37,586.4,0.34106412]
[1744570266324,0.30765801,587.36,586.4,0.34106412]
[1744570266725,0.34050667,587.36,586.4,0.34106412]
[1744570266923,0.30766401,587.35,586.4,0.34106412]
[1744570267527,0.29663726,587.34,586.4,0.34106412]
[1744570270226,0.34050667,587.36,586.4,0.34106412]
[1744570275032,0.34050667,587.36,586.41,0.31311657]
[1744570275527,0.34050667,587.36,586.39,0.31311657]
[1744570275931,0.2965551,587.54,586.39,0.31311657]
[1744570276131,1.28863208,588.19,586.39,0.31311657]
[1744570276529,0.29642627,587.67,586.39,0.31311657]
[1744570276832,0.30794624,587.66,586.39,0.31311657]
[1744570277028,1.28863208,588.19,586.38,0.34107575]
[1744570277228,0.30799521,587.65,586.4,0.31299955]
[1744570277432,0.30799521,588.18,586.39,0.89499955]
[1744570277732,0.34004352,588.16,586.4,0.31299955]
[1744570277932,0.30799521,588.15,586.4,0.31299955]
[1744570278132,0.30799521,588.14,586.4,0.31299955]
[1744570278330,0.30799521,588.13,586.4,0.31299955]
[1744570278528,0.30799521,588.12,586.4,0.31299955]
[1744570278729,0.3080387,588.11,586.41,0.31297812]
[1744570278929,0.3080387,588.14,586.4,0.90897812]
[1744570279233,0.3080387,588.13,586.41,0.31297812]
[1744570279433,0.3080387,588.12,586.41,0.31297812]
[1744570279733,0.3080387,588.11,586.41,0.31297812]
[1744570280033,0.3080387,588.1,586.41,0.31297812]
[1744570280231,0.3080387,588.09,586.41,0.31297812]
[1744570280428,0.3080387,588.12,586.42,0.34105248]
[1744570280632,0.3080387,588.11,586.43,0.31297812]